[Event "December 19 Late 2023"]
[Site "https://www.chess.com"]
[Date "2023.12.19"]
[Round "11"]
[White "Dwilewicz, Katarzyna"]
[Black "Cardozo Munar, Carlos Eduardo"]
[Result "1-0"]
[Board "82"]
[TimeControl "180+1"]
[WhiteFideId "1148486"]
[BlackFideId "4409477"]
[WhiteElo "2098"]
[BlackElo "2067"]
[WhiteTeam "POL"]
[BlackTeam "COL"]
[WhiteClock "0:02:22"]
[BlackClock "0:00:08"]

1. Nf3 {[%clk 0:02:55]}  Nf6 {[%clk 0:02:59]} 2. g3 {[%clk 0:02:55]}  g6 {[%clk 0:03:00]} 3. Bg2 {[%clk 0:02:56]}  Bg7 {[%clk 0:03:00]} 4. O-O {[%clk 0:02:57]}  O-O {[%clk 0:03:00]} 5. d4 {[%clk 0:02:58]}  d6 {[%clk 0:03:00]} 6. c4 {[%clk 0:02:58]}  Nbd7 {[%clk 0:03:01]} 7. Nc3 {[%clk 0:02:58]}  Re8 {[%clk 0:03:00]} 8. e4 {[%clk 0:02:57]}  a6 {[%clk 0:03:01]} 9. Re1 {[%clk 0:02:55]}  e5 {[%clk 0:03:02]} 10. dxe5 {[%clk 0:02:54]}  Nxe5 {[%clk 0:03:03]} 11. Nxe5 {[%clk 0:02:54]}  dxe5 {[%clk 0:03:03]} 12. Qxd8 {[%clk 0:02:53]}  Rxd8 {[%clk 0:03:04]} 13. Bg5 {[%clk 0:02:53]}  c6 {[%clk 0:03:04]} 14. Rad1 {[%clk 0:02:54]}  Be6 {[%clk 0:03:05]} 15. b3 {[%clk 0:02:53]}  h6 {[%clk 0:03:05]} 16. Be3 {[%clk 0:02:51]}  Bf8 {[%clk 0:02:56]} 17. Na4 {[%clk 0:02:46]}  b5 {[%clk 0:02:55]} 18. Nc5 {[%clk 0:02:43]}  Bxc5 {[%clk 0:02:47]} 19. Bxc5 {[%clk 0:02:42]}  bxc4 {[%clk 0:02:47]} 20. Rxd8+ {[%clk 0:02:41]}  Rxd8 {[%clk 0:02:47]} 21. Be7 {[%clk 0:02:41]}  Rd2 {[%clk 0:02:33]} 22. Bxf6 {[%clk 0:02:42]}  cxb3 {[%clk 0:01:28]} 23. axb3 {[%clk 0:02:40]}  Bxb3 {[%clk 0:01:28]} 24. Bxe5 {[%clk 0:02:41]}  Rd1 {[%clk 0:01:26]} 25. Rxd1 {[%clk 0:02:40]}  Bxd1 {[%clk 0:01:27]} 26. Bc3 {[%clk 0:02:38]}  c5 {[%clk 0:01:25]} 27. f4 {[%clk 0:02:37]}  c4 {[%clk 0:01:25]} 28. Kf2 {[%clk 0:02:37]}  Kf8 {[%clk 0:01:23]} 29. Ke3 {[%clk 0:02:35]}  Ke7 {[%clk 0:01:23]} 30. Bf1 {[%clk 0:02:36]}  Bb3 {[%clk 0:01:15]} 31. Kd4 {[%clk 0:02:36]}  g5 {[%clk 0:00:59]} 32. Bxc4 {[%clk 0:02:35]}  Bd1 {[%clk 0:00:59]} 33. f5 {[%clk 0:02:32]}  h5 {[%clk 0:00:57]} 34. e5 {[%clk 0:02:32]}  h4 {[%clk 0:00:56]} 35. gxh4 {[%clk 0:02:31]}  gxh4 {[%clk 0:00:56]} 36. Bb4+ {[%clk 0:02:32]}  Ke8 {[%clk 0:00:54]} 37. Bxa6 {[%clk 0:02:32]}  Bb3 {[%clk 0:00:50]} 38. Bb5+ {[%clk 0:02:30]}  Kd8 {[%clk 0:00:50]} 39. Be1 {[%clk 0:02:23]}  h3 {[%clk 0:00:49]} 40. Bf1 {[%clk 0:02:23]}  Bc2 {[%clk 0:00:49]} 41. Bxh3 {[%clk 0:02:23]}  Ke7 {[%clk 0:00:49]} 42. Bb4+ {[%clk 0:02:23]}  Ke8 {[%clk 0:00:49]} 43. Bg4 {[%clk 0:02:22]}  f6 {[%clk 0:00:19]} 44. e6 {[%clk 0:02:21]}  Ba4 {[%clk 0:00:17]} 45. Bh5+ {[%clk 0:02:21]}  Kd8 {[%clk 0:00:09]} 46. e7+ {[%clk 0:02:22]}  Kc7 {[%clk 0:00:09]} 47. e8=Q {[%clk 0:02:22]}  Bxe8 {[%clk 0:00:08]} 48. Bxe8 {[%clk 0:02:22]} 1-0

[Event "December 19 Late 2023"]
[Site "https://www.chess.com"]
[Date "2023.12.19"]
[Round "11"]
[White "ajian"]
[Black "Chemin, Justo Reinaldo"]
[Result "1-0"]
[Board "83"]
[TimeControl "180+1"]
[BlackFideId "2101580"]
[WhiteElo "2397"]
[BlackElo "1940"]
[BlackTeam "BRA"]
[WhiteClock "0:01:07"]
[BlackClock "0:00:26"]

1. d4 {[%clk 0:03:00]}  e6 {[%clk 0:03:00]} 2. c4 {[%clk 0:03:00]}  d5 {[%clk 0:03:00]} 3. Nc3 {[%clk 0:03:00]}  c6 {[%clk 0:03:00]} 4. e3 {[%clk 0:03:00]}  Nf6 {[%clk 0:02:59]} 5. Nf3 {[%clk 0:03:00]}  Nbd7 {[%clk 0:03:00]} 6. Qc2 {[%clk 0:03:00]}  Bd6 {[%clk 0:02:55]} 7. b3 {[%clk 0:03:00]}  b6 {[%clk 0:02:52]} 8. Bd3 {[%clk 0:03:00]}  Bb7 {[%clk 0:02:51]} 9. O-O {[%clk 0:02:59]}  Rc8 {[%clk 0:02:49]} 10. Qe2 {[%clk 0:02:53]}  O-O {[%clk 0:02:40]} 11. Bb2 {[%clk 0:02:51]}  e5 {[%clk 0:02:37]} 12. cxd5 {[%clk 0:02:46]}  cxd5 {[%clk 0:02:08]} 13. Nb5 {[%clk 0:02:44]}  e4 {[%clk 0:01:54]} 14. Nxd6 {[%clk 0:02:42]}  exf3 {[%clk 0:01:54]} 15. Qxf3 {[%clk 0:02:39]}  Rb8 {[%clk 0:01:49]} 16. Ba3 {[%clk 0:02:29]}  Ne4 {[%clk 0:01:41]} 17. Nxb7 {[%clk 0:02:12]}  Rxb7 {[%clk 0:01:38]} 18. Bxe4 {[%clk 0:02:10]}  dxe4 {[%clk 0:01:32]} 19. Qxe4 {[%clk 0:02:11]}  Rc7 {[%clk 0:01:27]} 20. Bxf8 {[%clk 0:02:10]}  Nxf8 {[%clk 0:01:27]} 21. Rac1 {[%clk 0:02:09]}  Rd7 {[%clk 0:01:27]} 22. Qc6 {[%clk 0:02:06]}  Qe7 {[%clk 0:01:17]} 23. h3 {[%clk 0:02:05]}  h5 {[%clk 0:01:17]} 24. Rfd1 {[%clk 0:02:03]}  Ng6 {[%clk 0:01:16]} 25. Qf3 {[%clk 0:01:49]}  Qg5 {[%clk 0:01:11]} 26. d5 {[%clk 0:01:37]}  Ne7 {[%clk 0:00:53]} 27. d6 {[%clk 0:01:31]}  Nf5 {[%clk 0:00:52]} 28. Rd5 {[%clk 0:01:21]}  g6 {[%clk 0:00:44]} 29. Rc8+ {[%clk 0:01:19]}  Kh7 {[%clk 0:00:43]} 30. e4 {[%clk 0:01:19]}  Rxd6 {[%clk 0:00:34]} 31. exf5 {[%clk 0:01:11]}  Rf6 {[%clk 0:00:30]} 32. fxg6+ {[%clk 0:01:09]}  fxg6 {[%clk 0:00:26]} 33. Rd7+ {[%clk 0:01:07]} 1-0

[Event "December 19 Late 2023"]
[Site "https://www.chess.com"]
[Date "2023.12.19"]
[Round "11"]
[White "Kubatko, Ivan"]
[Black "Essing, Arnold"]
[Result "1-0"]
[Board "85"]
[TimeControl "180+1"]
[WhiteFideId "24111473"]
[BlackFideId "4619862"]
[WhiteElo "2285"]
[BlackElo "2257"]
[WhiteTeam "RUS"]
[BlackTeam "GER"]
[WhiteClock "0:00:09"]
[BlackClock "0:00:00"]

1. e4 {[%clk 0:03:00]}  Nf6 {[%clk 0:02:58]} 2. e5 {[%clk 0:02:59]}  Nd5 {[%clk 0:02:58]} 3. c4 {[%clk 0:02:59]}  Nb6 {[%clk 0:02:59]} 4. a4 {[%clk 0:03:00]}  a5 {[%clk 0:02:58]} 5. c5 {[%clk 0:02:56]}  Nd5 {[%clk 0:02:58]} 6. Bc4 {[%clk 0:02:55]}  e6 {[%clk 0:02:58]} 7. Nc3 {[%clk 0:02:47]}  c6 {[%clk 0:02:48]} 8. d4 {[%clk 0:02:35]}  b6 {[%clk 0:02:45]} 9. cxb6 {[%clk 0:02:33]}  Qxb6 {[%clk 0:02:43]} 10. Nge2 {[%clk 0:02:18]}  Ba6 {[%clk 0:02:41]} 11. Bxd5 {[%clk 0:02:13]}  cxd5 {[%clk 0:02:39]} 12. O-O {[%clk 0:02:10]}  Nc6 {[%clk 0:02:39]} 13. Nb5 {[%clk 0:01:50]}  Bxb5 {[%clk 0:02:33]} 14. axb5 {[%clk 0:01:51]}  Qxb5 {[%clk 0:02:34]} 15. Nc3 {[%clk 0:01:52]}  Qb6 {[%clk 0:02:30]} 16. Be3 {[%clk 0:01:42]}  Qxb2 {[%clk 0:02:13]} 17. Na4 {[%clk 0:01:41]}  Qb7 {[%clk 0:02:10]} 18. f4 {[%clk 0:01:35]}  Bb4 {[%clk 0:02:00]} 19. f5 {[%clk 0:01:34]}  O-O-O {[%clk 0:01:38]} 20. Rc1 {[%clk 0:01:21]}  Kb8 {[%clk 0:01:34]} 21. Nc5 {[%clk 0:01:14]}  Qb5 {[%clk 0:01:30]} 22. fxe6 {[%clk 0:01:09]}  fxe6 {[%clk 0:01:29]} 23. Rf7 {[%clk 0:01:06]}  Bxc5 {[%clk 0:01:13]} 24. Rxc5 {[%clk 0:01:02]}  Qb4 {[%clk 0:01:05]} 25. Qd3 {[%clk 0:00:48]}  Na7 {[%clk 0:00:43]} 26. Bd2 {[%clk 0:00:45]}  Qb7 {[%clk 0:00:30]} 27. Rxa5 {[%clk 0:00:43]}  Rhf8 {[%clk 0:00:22]} 28. Rxf8 {[%clk 0:00:38]}  Rxf8 {[%clk 0:00:23]} 29. Ra1 {[%clk 0:00:38]}  Ka8 {[%clk 0:00:21]} 30. Rb1 {[%clk 0:00:33]}  Qc6 {[%clk 0:00:21]} 31. Bb4 {[%clk 0:00:29]}  Rb8 {[%clk 0:00:18]} 32. Bc5 {[%clk 0:00:25]}  Rxb1+ {[%clk 0:00:17]} 33. Qxb1 {[%clk 0:00:26]}  Qb7 {[%clk 0:00:16]} 34. Qxh7 {[%clk 0:00:26]}  Nc6 {[%clk 0:00:12]} 35. Qc2 {[%clk 0:00:24]}  Qb5 {[%clk 0:00:11]} 36. Kf2 {[%clk 0:00:22]}  Kb7 {[%clk 0:00:10]} 37. h4 {[%clk 0:00:22]}  Qc4 {[%clk 0:00:09]} 38. Qxc4 {[%clk 0:00:21]}  dxc4 {[%clk 0:00:10]} 39. g4 {[%clk 0:00:20]}  Nd8 {[%clk 0:00:10]} 40. Bf8 {[%clk 0:00:17]}  g6 {[%clk 0:00:09]} 41. h5 {[%clk 0:00:17]}  gxh5 {[%clk 0:00:09]} 42. gxh5 {[%clk 0:00:18]}  Nf7 {[%clk 0:00:09]} 43. h6 {[%clk 0:00:13]}  Ng5 {[%clk 0:00:09]} 44. Be7 {[%clk 0:00:09]}  Nh7 {[%clk 0:00:08]} 45. Ke3 {[%clk 0:00:08]}  Kc6 {[%clk 0:00:09]} 46. Kd2 {[%clk 0:00:08]}  Kd5 {[%clk 0:00:09]} 47. Kc3 {[%clk 0:00:08]}  Ke4 {[%clk 0:00:03]} 48. Kxc4 {[%clk 0:00:08]}  Kf5 {[%clk 0:00:03]} 49. Kc5 {[%clk 0:00:08]}  Kg6 {[%clk 0:00:03]} 50. Kd6 {[%clk 0:00:08]}  Kxh6 {[%clk 0:00:02]} 51. Kxd7 {[%clk 0:00:09]}  Kg6 {[%clk 0:00:00]} 52. Kxe6 {[%clk 0:00:09]} 1-0

[Event "December 19 Late 2023"]
[Site "https://www.chess.com"]
[Date "2023.12.19"]
[Round "11"]
[White "Chess_Star1234"]
[Black "Ardila, Oscar Humberto"]
[Result "1-0"]
[Board "88"]
[TimeControl "180+1"]
[BlackFideId "4404742"]
[WhiteElo "2359"]
[BlackElo "1915"]
[BlackTeam "COL"]
[WhiteClock "0:00:42"]
[BlackClock "0:00:55"]

1. d4 {[%clk 0:03:00]}  Nf6 {[%clk 0:03:00]} 2. c4 {[%clk 0:02:58]}  e6 {[%clk 0:03:00]} 3. Nc3 {[%clk 0:02:58]}  Bb4 {[%clk 0:03:00]} 4. Qc2 {[%clk 0:02:59]}  d5 {[%clk 0:02:57]} 5. a3 {[%clk 0:02:57]}  Be7 {[%clk 0:02:57]} 6. Nf3 {[%clk 0:02:56]}  O-O {[%clk 0:02:57]} 7. Bg5 {[%clk 0:02:55]}  Nbd7 {[%clk 0:02:57]} 8. cxd5 {[%clk 0:02:54]}  exd5 {[%clk 0:02:57]} 9. e3 {[%clk 0:02:54]}  h6 {[%clk 0:02:56]} 10. Bh4 {[%clk 0:02:53]}  c6 {[%clk 0:02:57]} 11. Bd3 {[%clk 0:02:54]}  Re8 {[%clk 0:02:57]} 12. O-O {[%clk 0:02:54]}  Nf8 {[%clk 0:02:48]} 13. b4 {[%clk 0:02:50]}  a6 {[%clk 0:02:47]} 14. Rab1 {[%clk 0:02:49]}  Nh5 {[%clk 0:02:46]} 15. Bxe7 {[%clk 0:02:48]}  Qxe7 {[%clk 0:02:47]} 16. a4 {[%clk 0:02:48]}  b5 {[%clk 0:02:42]} 17. a5 {[%clk 0:02:44]}  Bd7 {[%clk 0:02:41]} 18. Nd2 {[%clk 0:02:29]}  Nf6 {[%clk 0:02:41]} 19. Ne2 {[%clk 0:02:13]}  Ne4 {[%clk 0:02:37]} 20. Bxe4 {[%clk 0:01:54]}  dxe4 {[%clk 0:02:37]} 21. Rfc1 {[%clk 0:01:51]}  Rac8 {[%clk 0:02:36]} 22. Qc5 {[%clk 0:01:51]}  Qxc5 {[%clk 0:02:22]} 23. Rxc5 {[%clk 0:01:52]}  f5 {[%clk 0:02:09]} 24. Rbc1 {[%clk 0:01:38]}  Ne6 {[%clk 0:02:08]} 25. Rxf5 {[%clk 0:01:31]}  Nc7 {[%clk 0:01:48]} 26. Rfc5 {[%clk 0:01:22]}  Nd5 {[%clk 0:01:47]} 27. Rb1 {[%clk 0:01:19]}  Kf7 {[%clk 0:01:39]} 28. Nc3 {[%clk 0:01:08]}  Nf6 {[%clk 0:01:33]} 29. Rc1 {[%clk 0:01:04]}  Be6 {[%clk 0:01:33]} 30. Ncxe4 {[%clk 0:01:02]}  Bd5 {[%clk 0:01:31]} 31. Nd6+ {[%clk 0:00:54]}  Ke6 {[%clk 0:01:30]} 32. Nxc8 {[%clk 0:00:55]}  Rxc8 {[%clk 0:01:29]} 33. e4 {[%clk 0:00:55]}  Bc4 {[%clk 0:01:08]} 34. Nxc4 {[%clk 0:00:43]}  bxc4 {[%clk 0:01:09]} 35. d5+ {[%clk 0:00:42]}  Kd6 {[%clk 0:01:03]} 36. Rxc6+ {[%clk 0:00:42]}  Rxc6 {[%clk 0:01:03]} 37. dxc6 {[%clk 0:00:43]}  Nxe4 {[%clk 0:01:01]} 38. Rxc4 {[%clk 0:00:42]}  Nf6 {[%clk 0:00:55]} 39. c7 {[%clk 0:00:42]} 1-0

[Event "December 19 Late 2023"]
[Site "https://www.chess.com"]
[Date "2023.12.19"]
[Round "11"]
[White "Novikova, Margarita"]
[Black "Carrasco Miranda, Andres"]
[Result "0-1"]
[Board "90"]
[TimeControl "180+1"]
[WhiteFideId "14109689"]
[BlackFideId "3405990"]
[WhiteElo "2090"]
[BlackElo "2183"]
[WhiteTeam "GER"]
[BlackTeam "CHI"]
[WhiteClock "0:00:00"]
[BlackClock "0:00:58"]

1. e4 {[%clk 0:02:58]}  e5 {[%clk 0:02:59]} 2. Nf3 {[%clk 0:02:58]}  Nc6 {[%clk 0:02:57]} 3. Bc4 {[%clk 0:02:58]}  Bc5 {[%clk 0:02:56]} 4. c3 {[%clk 0:02:59]}  Nf6 {[%clk 0:02:56]} 5. d4 {[%clk 0:02:59]}  exd4 {[%clk 0:02:51]} 6. cxd4 {[%clk 0:03:00]}  Bb4+ {[%clk 0:02:51]} 7. Bd2 {[%clk 0:03:01]}  Bxd2+ {[%clk 0:02:51]} 8. Nbxd2 {[%clk 0:03:01]}  d5 {[%clk 0:02:51]} 9. exd5 {[%clk 0:03:01]}  Nxd5 {[%clk 0:02:52]} 10. O-O {[%clk 0:03:02]}  O-O {[%clk 0:02:52]} 11. Rc1 {[%clk 0:03:02]}  Bg4 {[%clk 0:02:50]} 12. h3 {[%clk 0:02:55]}  Bh5 {[%clk 0:02:49]} 13. a3 {[%clk 0:02:41]}  a5 {[%clk 0:02:38]} 14. Qb3 {[%clk 0:02:36]}  Nb6 {[%clk 0:02:36]} 15. Bb5 {[%clk 0:02:29]}  Nxd4 {[%clk 0:02:32]} 16. Nxd4 {[%clk 0:02:17]}  Qxd4 {[%clk 0:02:33]} 17. Nc4 {[%clk 0:02:00]}  Be2 {[%clk 0:02:13]} 18. Rfe1 {[%clk 0:01:31]}  Bxc4 {[%clk 0:02:10]} 19. Bxc4 {[%clk 0:01:31]}  Nxc4 {[%clk 0:02:07]} 20. Rxc4 {[%clk 0:01:32]}  Qb6 {[%clk 0:02:02]} 21. Qxb6 {[%clk 0:01:25]}  cxb6 {[%clk 0:02:03]} 22. Rc7 {[%clk 0:01:25]}  Rab8 {[%clk 0:01:51]} 23. Ree7 {[%clk 0:01:24]}  g6 {[%clk 0:01:41]} 24. Rxb7 {[%clk 0:01:23]}  Rxb7 {[%clk 0:01:25]} 25. Rxb7 {[%clk 0:01:21]}  Rc8 {[%clk 0:01:25]} 26. b4 {[%clk 0:01:18]}  axb4 {[%clk 0:01:24]} 27. axb4 {[%clk 0:01:18]}  Rc6 {[%clk 0:01:23]} 28. b5 {[%clk 0:01:17]}  Re6 {[%clk 0:01:22]} 29. Kh2 {[%clk 0:01:02]}  Kg7 {[%clk 0:01:22]} 30. Kg3 {[%clk 0:01:00]}  Kf6 {[%clk 0:01:22]} 31. Rc7 {[%clk 0:00:58]}  h5 {[%clk 0:01:15]} 32. h4 {[%clk 0:00:58]}  Rd6 {[%clk 0:01:13]} 33. f3 {[%clk 0:00:46]}  Ke6 {[%clk 0:01:12]} 34. Kf4 {[%clk 0:00:43]}  f6 {[%clk 0:01:08]} 35. Rg7 {[%clk 0:00:32]}  Rd5 {[%clk 0:01:06]} 36. Rxg6 {[%clk 0:00:31]}  Kf7 {[%clk 0:00:58]} 37. Rh6 {[%clk 0:00:00]}  Kg7 {[%clk 0:00:58]} 0-1

[Event "December 19 Late 2023"]
[Site "https://www.chess.com"]
[Date "2023.12.19"]
[Round "11"]
[White "De Souza, Cristiano Gomes"]
[Black "Jesusesmifuerza"]
[Result "1-0"]
[Board "92"]
[TimeControl "180+1"]
[WhiteFideId "2151758"]
[WhiteElo "2068"]
[BlackElo "2187"]
[WhiteTeam "BRA"]
[WhiteClock "0:02:20"]
[BlackClock "0:01:19"]

1. d4 {[%clk 0:02:58]}  d5 {[%clk 0:02:57]} 2. c4 {[%clk 0:02:59]}  c6 {[%clk 0:02:57]} 3. Nf3 {[%clk 0:02:58]}  Nf6 {[%clk 0:02:57]} 4. Nc3 {[%clk 0:02:58]}  e6 {[%clk 0:02:57]} 5. Bg5 {[%clk 0:02:58]}  Be7 {[%clk 0:02:57]} 6. e3 {[%clk 0:02:57]}  O-O {[%clk 0:02:57]} 7. Rc1 {[%clk 0:02:58]}  b6 {[%clk 0:02:50]} 8. Be2 {[%clk 0:02:56]}  Bb7 {[%clk 0:02:50]} 9. O-O {[%clk 0:02:56]}  Nbd7 {[%clk 0:02:51]} 10. b3 {[%clk 0:02:56]}  h6 {[%clk 0:02:51]} 11. Bh4 {[%clk 0:02:55]}  Re8 {[%clk 0:02:51]} 12. Bg3 {[%clk 0:02:54]}  Nf8 {[%clk 0:02:50]} 13. Ne5 {[%clk 0:02:53]}  Bd6 {[%clk 0:02:50]} 14. f3 {[%clk 0:02:52]}  Qe7 {[%clk 0:02:50]} 15. Rc2 {[%clk 0:02:50]}  N6d7 {[%clk 0:02:51]} 16. Nxd7 {[%clk 0:02:50]}  Nxd7 {[%clk 0:02:51]} 17. Bxd6 {[%clk 0:02:50]}  Qxd6 {[%clk 0:02:52]} 18. e4 {[%clk 0:02:50]}  e5 {[%clk 0:02:36]} 19. cxd5 {[%clk 0:02:47]}  cxd5 {[%clk 0:02:33]} 20. Nb5 {[%clk 0:02:47]}  Qb4 {[%clk 0:02:03]} 21. Nc7 {[%clk 0:02:45]}  dxe4 {[%clk 0:02:02]} 22. Nxe8 {[%clk 0:02:42]}  Rxe8 {[%clk 0:02:03]} 23. Rc4 {[%clk 0:02:40]}  Qe7 {[%clk 0:01:58]} 24. Rc7 {[%clk 0:02:34]}  Ba8 {[%clk 0:01:49]} 25. Bb5 {[%clk 0:02:31]}  Rd8 {[%clk 0:01:44]} 26. dxe5 {[%clk 0:02:31]}  Qxe5 {[%clk 0:01:34]} 27. Rxd7 {[%clk 0:02:29]}  Qc5+ {[%clk 0:01:31]} 28. Kh1 {[%clk 0:02:28]}  Rxd7 {[%clk 0:01:24]} 29. Qxd7 {[%clk 0:02:27]}  exf3 {[%clk 0:01:23]} 30. Qe8+ {[%clk 0:02:26]}  Kh7 {[%clk 0:01:23]} 31. Qxa8 {[%clk 0:02:25]}  fxg2+ {[%clk 0:01:20]} 32. Qxg2 {[%clk 0:02:25]}  Qxb5 {[%clk 0:01:21]} 33. Qc2+ {[%clk 0:02:23]}  g6 {[%clk 0:01:20]} 34. Rxf7+ {[%clk 0:02:20]}  Kg8 {[%clk 0:01:19]} 35. Qxg6+ {[%clk 0:02:20]} 1-0

[Event "December 19 Late 2023"]
[Site "https://www.chess.com"]
[Date "2023.12.19"]
[Round "11"]
[White "Korol, Dimitry"]
[Black "Demina, Marya"]
[Result "1-0"]
[Board "95"]
[TimeControl "180+1"]
[WhiteFideId "14108003"]
[BlackFideId "4195671"]
[WhiteElo "2262"]
[BlackElo "1978"]
[WhiteTeam "UKR"]
[BlackTeam "RUS"]
[WhiteClock "0:01:09"]
[BlackClock "0:00:00"]

1. d4 {[%clk 0:03:00]}  Nf6 {[%clk 0:02:59]} 2. c4 {[%clk 0:03:01]}  c5 {[%clk 0:02:59]} 3. d5 {[%clk 0:03:01]}  b5 {[%clk 0:02:59]} 4. Nd2 {[%clk 0:03:01]}  b4 {[%clk 0:02:58]} 5. e4 {[%clk 0:02:59]}  d6 {[%clk 0:02:58]} 6. Ngf3 {[%clk 0:02:58]}  g6 {[%clk 0:02:59]} 7. b3 {[%clk 0:02:58]}  Bg7 {[%clk 0:02:59]} 8. Bb2 {[%clk 0:02:59]}  O-O {[%clk 0:03:00]} 9. h3 {[%clk 0:02:58]}  a5 {[%clk 0:02:52]} 10. a4 {[%clk 0:02:57]}  bxa3 {[%clk 0:02:52]} 11. Rxa3 {[%clk 0:02:57]}  Na6 {[%clk 0:02:49]} 12. Bd3 {[%clk 0:02:55]}  Nb4 {[%clk 0:02:47]} 13. Bb1 {[%clk 0:02:56]}  e5 {[%clk 0:02:31]} 14. dxe6 {[%clk 0:02:54]}  fxe6 {[%clk 0:02:31]} 15. O-O {[%clk 0:02:54]}  d5 {[%clk 0:02:23]} 16. exd5 {[%clk 0:02:34]}  exd5 {[%clk 0:02:23]} 17. cxd5 {[%clk 0:02:34]}  Nbxd5 {[%clk 0:02:12]} 18. Ne4 {[%clk 0:02:09]}  Bb7 {[%clk 0:02:07]} 19. Nxc5 {[%clk 0:02:08]}  Rf7 {[%clk 0:01:35]} 20. Ne6 {[%clk 0:02:03]}  Qe7 {[%clk 0:01:22]} 21. Re1 {[%clk 0:01:58]}  Qd7 {[%clk 0:01:20]} 22. Nxg7 {[%clk 0:01:18]}  Kxg7 {[%clk 0:01:08]} 23. Ne5 {[%clk 0:01:17]}  Qc7 {[%clk 0:00:52]} 24. Nxf7 {[%clk 0:01:16]}  Kxf7 {[%clk 0:00:52]} 25. Qd4 {[%clk 0:01:14]}  Qc6 {[%clk 0:00:42]} 26. Bd3 {[%clk 0:01:11]}  Nb4 {[%clk 0:00:27]} 27. Bc4+ {[%clk 0:01:11]}  Kg7 {[%clk 0:00:18]} 28. Qxf6+ {[%clk 0:01:11]}  Qxf6 {[%clk 0:00:18]} 29. Re7+ {[%clk 0:01:11]}  Kf8 {[%clk 0:00:14]} 30. Bxf6 {[%clk 0:01:12]}  Nc2 {[%clk 0:00:08]} 31. Ra2 {[%clk 0:01:11]}  Nb4 {[%clk 0:00:06]} 32. Rd2 {[%clk 0:01:10]}  Bc6 {[%clk 0:00:00]} 33. Rf7+ {[%clk 0:01:09]} 1-0

[Event "December 19 Late 2023"]
[Site "https://www.chess.com"]
[Date "2023.12.19"]
[Round "11"]
[White "Shapiro, Daniel"]
[Black "Guzman Lozano, Campo Elias"]
[Result "1-0"]
[Board "96"]
[TimeControl "180+1"]
[WhiteFideId "2001780"]
[BlackFideId "4403746"]
[WhiteElo "2287"]
[BlackElo "2099"]
[WhiteTeam "USA"]
[BlackTeam "COL"]
[WhiteClock "0:00:11"]
[BlackClock "0:00:10"]

1. d4 {[%clk 0:03:00]}  Nf6 {[%clk 0:02:58]} 2. c4 {[%clk 0:03:00]}  e6 {[%clk 0:02:58]} 3. g3 {[%clk 0:03:00]}  c6 {[%clk 0:02:56]} 4. Bg2 {[%clk 0:02:59]}  d5 {[%clk 0:02:55]} 5. Qc2 {[%clk 0:02:59]}  Nbd7 {[%clk 0:02:54]} 6. Nf3 {[%clk 0:02:58]}  Be7 {[%clk 0:02:54]} 7. O-O {[%clk 0:02:58]}  Ne4 {[%clk 0:02:52]} 8. Rd1 {[%clk 0:02:56]}  O-O {[%clk 0:02:50]} 9. Ne5 {[%clk 0:02:55]}  f5 {[%clk 0:02:49]} 10. Nd3 {[%clk 0:02:46]}  Nb6 {[%clk 0:02:36]} 11. b3 {[%clk 0:02:45]}  Bd7 {[%clk 0:02:35]} 12. f3 {[%clk 0:02:42]}  Nf6 {[%clk 0:02:34]} 13. Nd2 {[%clk 0:02:31]}  Rc8 {[%clk 0:02:32]} 14. e4 {[%clk 0:02:29]}  fxe4 {[%clk 0:02:27]} 15. fxe4 {[%clk 0:02:28]}  Be8 {[%clk 0:02:27]} 16. Bb2 {[%clk 0:02:18]}  Ng4 {[%clk 0:02:25]} 17. Nf1 {[%clk 0:02:09]}  Bg5 {[%clk 0:02:24]} 18. Qe2 {[%clk 0:02:01]}  Nh6 {[%clk 0:02:21]} 19. Nc5 {[%clk 0:01:42]}  Qe7 {[%clk 0:02:12]} 20. h4 {[%clk 0:01:34]}  Bf6 {[%clk 0:02:11]} 21. e5 {[%clk 0:01:32]}  Bxh4 {[%clk 0:02:12]} 22. gxh4 {[%clk 0:01:32]}  Qxh4 {[%clk 0:02:11]} 23. Nxe6 {[%clk 0:01:27]}  Rf5 {[%clk 0:02:00]} 24. Rd3 {[%clk 0:01:16]}  Bh5 {[%clk 0:01:54]} 25. Qe1 {[%clk 0:01:03]}  Qe7 {[%clk 0:01:53]} 26. Nc5 {[%clk 0:00:59]}  dxc4 {[%clk 0:01:53]} 27. bxc4 {[%clk 0:00:53]}  Nxc4 {[%clk 0:01:53]} 28. Bc1 {[%clk 0:00:49]}  Nf7 {[%clk 0:01:39]} 29. Bh3 {[%clk 0:00:47]}  Rg5+ {[%clk 0:01:23]} 30. Bxg5 {[%clk 0:00:45]}  Qxg5+ {[%clk 0:01:22]} 31. Rg3 {[%clk 0:00:44]}  Qh6 {[%clk 0:01:16]} 32. Bxc8 {[%clk 0:00:44]}  Ng5 {[%clk 0:01:07]} 33. Qf2 {[%clk 0:00:27]}  b6 {[%clk 0:00:45]} 34. Qc2 {[%clk 0:00:18]}  Na5 {[%clk 0:00:20]} 35. Ne4 {[%clk 0:00:16]}  Nf3+ {[%clk 0:00:19]} 36. Rxf3 {[%clk 0:00:14]}  Bxf3 {[%clk 0:00:19]} 37. Nfg3 {[%clk 0:00:12]}  Qf4 {[%clk 0:00:17]} 38. Rf1 {[%clk 0:00:11]}  Qe3+ {[%clk 0:00:14]} 39. Qf2 {[%clk 0:00:11]}  Qxf2+ {[%clk 0:00:12]} 40. Rxf2 {[%clk 0:00:11]}  Bxe4 {[%clk 0:00:13]} 41. Nxe4 {[%clk 0:00:11]}  Nc4 {[%clk 0:00:12]} 42. e6 {[%clk 0:00:11]}  Nd6 {[%clk 0:00:10]} 43. e7 {[%clk 0:00:11]}  c5 {[%clk 0:00:10]} 44. Rf8# {[%clk 0:00:11]} 1-0

[Event "December 19 Late 2023"]
[Site "https://www.chess.com"]
[Date "2023.12.19"]
[Round "11"]
[White "Khokhlova, Daria"]
[Black "Egorov, Konstantin"]
[Result "1-0"]
[Board "99"]
[TimeControl "180+1"]
[WhiteFideId "24182729"]
[BlackFideId "24154369"]
[WhiteElo "2032"]
[BlackElo "1878"]
[WhiteTeam "FID"]
[BlackTeam "RUS"]
[WhiteClock "0:00:30"]
[BlackClock "0:00:00"]

1. d4 {[%clk 0:03:00]}  Nf6 {[%clk 0:02:58]} 2. c4 {[%clk 0:03:01]}  e6 {[%clk 0:02:58]} 3. g3 {[%clk 0:02:59]}  d5 {[%clk 0:02:56]} 4. Nf3 {[%clk 0:02:59]}  Be7 {[%clk 0:02:56]} 5. Bg2 {[%clk 0:02:59]}  O-O {[%clk 0:02:57]} 6. O-O {[%clk 0:03:00]}  dxc4 {[%clk 0:02:58]} 7. Qa4 {[%clk 0:02:59]}  a6 {[%clk 0:02:57]} 8. Qxc4 {[%clk 0:02:59]}  b5 {[%clk 0:02:57]} 9. Qc2 {[%clk 0:03:00]}  Bb7 {[%clk 0:02:58]} 10. Bd2 {[%clk 0:02:58]}  Nbd7 {[%clk 0:02:57]} 11. Ba5 {[%clk 0:02:57]}  Nb6 {[%clk 0:02:57]} 12. Nbd2 {[%clk 0:02:53]}  Rc8 {[%clk 0:02:53]} 13. b4 {[%clk 0:02:46]}  Bxf3 {[%clk 0:02:03]} 14. Bxf3 {[%clk 0:02:29]}  Qxd4 {[%clk 0:02:00]} 15. Bb7 {[%clk 0:02:29]}  c6 {[%clk 0:00:53]} 16. Bxc8 {[%clk 0:02:20]}  Nxc8 {[%clk 0:00:43]} 17. Nf3 {[%clk 0:02:16]}  Qg4 {[%clk 0:00:23]} 18. Qxc6 {[%clk 0:02:07]}  Nd6 {[%clk 0:00:24]} 19. Qxa6 {[%clk 0:01:33]}  Nfe4 {[%clk 0:00:21]} 20. Bb6 {[%clk 0:01:20]}  h5 {[%clk 0:00:21]} 21. Kg2 {[%clk 0:01:16]}  h4 {[%clk 0:00:21]} 22. h3 {[%clk 0:00:51]}  Qg6 {[%clk 0:00:18]} 23. g4 {[%clk 0:00:47]}  f5 {[%clk 0:00:18]} 24. Ne5 {[%clk 0:00:43]}  Qh6 {[%clk 0:00:09]} 25. Be3 {[%clk 0:00:39]}  f4 {[%clk 0:00:09]} 26. Bd4 {[%clk 0:00:37]}  Qg5 {[%clk 0:00:08]} 27. Nf3 {[%clk 0:00:36]}  Qc5 {[%clk 0:00:07]} 28. bxc5 {[%clk 0:00:32]}  Nc4 {[%clk 0:00:00]} 29. Qxe6+ {[%clk 0:00:30]} 1-0